bitfinex/quotes_ETHUSD_20220310
["timestamp","ask_amount","ask_price","bid_price","bid_amount"]
[1646876605093,1.00498939,2700.4,2699.6,0.0791851]
[1646876605498,1.00498939,2700.4,2699.3,0.445]
[1646876605499,0.012463,2700.1,2699.3,0.07802329]
[1646876605704,0.012463,2700.1,2698.7,0.08841901]
[1646876605705,0.012646,2699.7,2698.7,0.08841901]
[1646876605904,0.013414,2699.3,2698.4,0.0835525]
[1646876606099,0.013414,2699.3,2698.2,0.00117955]
[1646876606100,1.23452092,2698.8,2698.2,0.07742114]
[1646876606299,1.23452092,2698.8,2698.1,0.00117955]
[1646876606602,0.012225,2698.6,2697.7,0.00117955]
[1646876606805,0.012225,2698.6,2697.5,0.00117955]
[1646876606806,0.013259,2698.4,2697.5,0.00117955]
[1646876607004,0.013259,2698.4,2697.2,0.92708]
[1646876607005,0.01355,2698.1,2697.2,0.92708]
[1646876607198,0.01355,2698.1,2697.3,0.08071829]
[1646876607398,0.01355,2698.1,2697.3,11.28]
[1646876607599,0.01355,2698.1,2697.0,4.07558]
[1646876607600,0.01355,2698.1,2697.5,11.6491]
[1646876607801,0.013259,2698.4,2697.5,11.6491]
[1646876608000,0.013259,2698.4,2697.7,0.92688]
[1646876608303,0.012862,2698.1,2697.6,0.08477755]
[1646876608504,1.04255819,2698.1,2697.4,1.85386]
[1646876608700,1.04255819,2698.1,2697.3,0.08147551]
[1646876608941,1.04255819,2698.1,2697.1,1.9431566]
[1646876609141,1.04255819,2698.1,2697.3,0.07908609]
[1646876609342,1.34255819,2698.1,2697.3,0.07908609]
[1646876609545,0.013523,2697.6,2697.0,0.00117955]
[1646876609746,0.013523,2697.6,2696.7,0.00976503]
[1646876609747,0.313523,2697.6,2696.7,0.00976503]
[1646876610147,1.34732501,2697.5,2696.7,0.00976503]
[1646876610344,0.0448192,2697.4,2696.8,1.53613232]
[1646876610545,0.0448192,2697.4,2696.7,0.00976503]
[1646876611246,0.98857376,2697.1,2696.7,0.00976503]
[1646876612349,1.00052376,2697.1,2696.7,0.00976503]
[1646876612599,0.04832102,2697.0,2696.7,0.00976503]
[1646876613191,0.011667,2697.3,2696.7,0.00976503]
[1646876613391,1.36034264,2697.0,2696.7,0.00976503]
[1646876613597,1.31034264,2697.0,2696.7,0.00976503]
[1646876614600,0.04573192,2696.9,2696.7,0.00976503]
[1646876615599,1.85548,2696.9,2696.7,0.00976503]
[1646876615797,0.35328265,2696.8,2696.7,0.00976503]
[1646876618447,0.3,2696.8,2696.7,0.00976503]
[1646876618645,0.9273397,2697.6,2696.7,0.00976503]
[1646876618844,1.8549067,2697.5,2696.7,0.00976503]
[1646876619045,0.0481703,2697.4,2696.7,0.00976503]
[1646876619646,0.97787138,2697.3,2696.7,0.00976503]
[1646876619851,0.05035796,2697.1,2696.7,0.00976503]
[1646876620098,1.90606456,2697.1,2696.7,0.00976503]
[1646876620302,0.0414666,2696.9,2696.7,0.00976503]
[1646876620603,0.9692129,2696.9,2696.7,0.00976503]
[1646876620803,1.2692129,2696.9,2696.7,0.00976503]
[1646876621003,0.92777,2696.8,2696.7,0.00976503]
[1646876621205,1.22777,2696.8,2696.7,0.00976503]
[1646876621408,0.3,2696.8,2696.7,0.00976503]
[1646876622605,0.05289271,2697.4,2696.7,0.00976503]
[1646876623405,0.87755,2697.2,2696.7,0.00976503]
[1646876623606,0.04541318,2697.1,2696.7,0.00976503]
[1646876624439,0.93787911,2697.1,2696.7,0.00976503]
[1646876625244,0.89246593,2697.1,2696.7,0.00976503]
[1646876625443,1.2276906,2697.2,2696.7,0.00976503]
[1646876625843,0.04239772,2697.1,2696.7,0.00976503]
[1646876626246,0.96999772,2697.1,2696.7,0.00976503]
[1646876626444,0.04797547,2697.0,2696.7,0.00976503]
[1646876626646,3.05660335,2696.9,2696.7,0.00976503]
[1646876626847,0.3,2696.8,2696.7,0.00976503]
[1646876627696,1.0,2697.1,2696.7,0.00976503]
[1646876627697,0.3,2697.1,2696.7,0.00976503]
[1646876627896,0.04285865,2697.3,2696.7,0.00976503]
[1646876628093,1.11259675,2697.1,2696.7,0.00976503]
[1646876628294,3.26779095,2697.1,2696.7,0.00976503]
[1646876628498,0.92775,2696.9,2696.7,0.00976503]
[1646876628895,1.22775,2696.9,2696.7,0.00976503]
[1646876635502,1.17775,2696.9,2696.7,0.00976503]
[1646876636300,0.9275957,2696.8,2696.7,0.00976503]
[1646876637198,1.2275957,2696.8,2696.7,0.00976503]
[1646876639056,1.8551942,2697.1,2696.7,0.00976503]
[1646876639261,0.3,2697.2,2696.8,0.012655]
[1646876639456,0.3,2697.2,2696.7,0.00976503]
[1646876639658,3.0,2697.0,2696.7,0.00976503]
[1646876639858,0.005834,2696.8,2696.7,0.00976503]
[1646876640059,0.450834,2696.8,2696.2,99.90880922]
[1646876640265,3.97482379,2696.6,2696.2,94.34024422]
[1646876640464,3.0,2696.3,2696.2,57.77147809]
[1646876640663,3.0,2696.3,2696.2,54.87174999]
[1646876640664,7.23138485,2696.3,2696.2,54.87174999]
[1646876640866,0.23910274,2696.1,2695.0,0.011667]
[1646876641063,0.23910274,2695.9,2695.0,0.011667]
[1646876641268,0.23910274,2695.6,2694.7,0.08802615]
[1646876641467,0.23910274,2695.2,2694.6,1.66537387]
[1646876641663,0.23910274,2694.8,2694.6,1.59046746]
[1646876641864,1.85672,2695.2,2694.6,1.59046746]
[1646876642062,2.85672,2695.2,2694.6,1.59046746]
[1646876642263,1.85672,2695.2,2694.6,1.59046746]
[1646876642463,2.85672,2695.2,2694.6,1.59046746]
[1646876642691,0.928367,2695.1,2694.6,1.59046746]
[1646876643090,0.3,2695.0,2694.6,1.59046746]
[1646876643292,0.3,2695.0,2694.7,0.013243]
[1646876643496,0.3,2695.0,2694.7,0.10509784]
[1646876643693,0.92835,2695.0,2694.7,0.09185484]
[1646876643894,0.9282608,2695.4,2694.7,0.10381884]
[1646876644093,0.3,2695.1,2694.7,0.10381884]
[1646876644293,1.9282608,2695.4,2694.7,0.10381884]
[1646876644294,1.16536123,2695.3,2694.7,0.10121952]
[1646876644897,4.87872593,2695.3,2694.7,0.08925552]
[1646876645298,5.87872593,2695.3,2694.7,0.08925552]
[1646876645797,5.87872593,2695.3,2694.6,1.59046746]
[1646876646198,3.1566,2695.3,2694.9,0.015789]
[1646876646447,0.3,2695.0,2694.9,0.015789]
[1646876646846,0.3,2695.0,2694.8,0.07541592]
[1646876646847,0.3,2695.3,2694.8,0.07541592]
[1646876647045,0.3,2695.3,2695.0,0.00259908]
[1646876647250,1.07647534,2695.4,2695.0,0.00259908]
[1646876647446,2.30472534,2695.4,2695.0,0.00259908]
[1646876647845,2.30472534,2695.4,2694.9,0.012614]
[1646876648246,2.30472534,2695.4,2695.1,0.00259898]
[1646876648447,0.92822,2695.3,2695.1,0.00259898]
[1646876648650,1.5,2695.6,2695.1,0.00259898]
[1646876648651,0.5,2695.6,2695.1,0.00259898]
[1646876648848,0.5,2695.6,2695.4,0.015494]
[1646876649049,1.172934,2696.8,2695.3,0.35022798]
[1646876649248,1.172934,2696.8,2695.7,0.35022798]
[1646876649249,0.5,2696.8,2695.7,0.35022798]
[1646876649447,0.5,2696.8,2696.7,0.09059092]
[1646876649650,6.75304778,2697.6,2696.2,0.35022798]
[1646876649848,1.02814778,2697.6,2696.4,0.08089428]
[1646876650300,0.5,2697.7,2696.4,0.08089428]
[1646876650502,0.5,2697.7,2696.6,0.08209015]
[1646876650702,0.5,2697.7,2696.7,1.27748798]
[1646876650901,0.5,2697.7,2696.8,0.08493866]
[1646876651304,0.5,2697.7,2697.4,0.8791847]
[1646876651502,0.5,2697.7,2697.4,0.96792354]
[1646876651803,0.92725,2698.2,2697.4,0.96792354]
[1646876651804,0.92725,2698.2,2697.5,0.07519022]
[1646876652002,0.5,2697.7,2697.5,0.07519022]
[1646876653108,0.50298115,2697.7,2697.6,0.79522798]
[1646876653702,0.00298115,2697.7,2697.6,0.79522798]
[1646876653952,0.5,2698.5,2697.6,2.33131445]
[1646876654147,3.5,2698.7,2697.7,0.08067808]
[1646876654348,0.00298114,2697.8,2697.1,0.06981515]
[1646876654547,0.00298114,2697.8,2697.2,1.53615592]
[1646876654750,0.00298114,2697.8,2697.3,0.0731629]
[1646876654948,0.00298114,2697.8,2697.5,0.08447798]
[1646876655151,1.1931599,2698.3,2697.6,1.08182714]
[1646876655352,1.4931599,2698.3,2697.6,1.08182714]
[1646876655651,0.3,2698.3,2697.7,0.0692059]
[1646876655854,1.22715,2698.4,2697.7,0.0692059]
[1646876656652,0.00327351,2698.2,2697.7,0.0692059]
[1646876656853,0.00327351,2698.2,2697.2,0.3691]
[1646876657051,0.00327351,2698.2,2697.3,1.53613557]
[1646876657250,0.00327351,2698.2,2697.4,1.53613557]
[1646876657451,0.00327351,2698.2,2697.5,1.53613557]
[1646876657691,1.47005912,2698.3,2697.4,0.07383464]
[1646876657893,0.3,2698.3,2697.7,0.0901635]
[1646876658295,0.3,2698.4,2697.7,0.0901635]
[1646876658693,3.52346,2698.6,2697.7,0.0901635]
[1646876658893,2.52346,2698.6,2697.7,0.0901635]
[1646876659098,0.00326245,2698.2,2697.7,0.0901635]
[1646876659795,0.00326245,2698.2,2697.2,0.07301981]
[1646876659995,0.92716,2698.4,2697.4,0.07746239]
[1646876660399,0.00326247,2698.1,2697.2,0.07659345]
[1646876660602,0.00326247,2698.1,2697.4,0.08258761]
[1646876660603,1.85795247,2698.1,2697.4,0.08258761]
[1646876660800,0.97067498,2697.9,2697.1,0.95481137]
[1646876660999,0.97067498,2697.9,2697.2,0.07970069]
[1646876661200,1.27067498,2697.9,2697.2,0.07970069]
[1646876661445,1.22735,2697.9,2697.2,0.07970069]
[1646876661654,0.00326258,2697.6,2697.2,0.07970069]
[1646876661850,0.00326258,2697.6,2697.2,0.44880069]
[1646876662147,3.5,2698.6,2697.6,0.00652515]
[1646876662346,1.3,2698.6,2697.6,0.00652515]
[1646876662546,1.19812361,2698.6,2697.8,1.05022563]
[1646876662747,1.19812361,2698.6,2697.9,0.07376812]
[1646876662949,2.62523361,2698.6,2697.6,0.00652515]
[1646876663149,5.19812361,2698.6,2697.6,0.00652515]
[1646876663347,2.69812361,2698.6,2697.6,0.00652515]
[1646876663746,6.19812361,2698.6,2697.6,0.00652515]
[1646876663946,0.87145986,2698.1,2697.6,0.00652515]
[1646876664159,3.5,2698.0,2697.6,0.00652515]
[1646876664349,1.0,2698.0,2697.6,0.00652515]
[1646876664751,1.17145986,2698.1,2697.6,0.00652515]
[1646876665105,0.3,2698.1,2697.6,0.00652515]
[1646876665311,0.00262818,2697.9,2697.6,0.00652515]
[1646876666114,5.79625,2698.4,2697.6,0.00652515]
[1646876666115,6.09625,2698.4,2697.6,0.00652515]
[1646876666312,6.09625,2698.4,2697.6,1.11606882]
[1646876666313,3.62091837,2698.4,2697.6,1.11606882]
[1646876666611,0.00340696,2697.9,2697.7,0.08237431]
[1646876667313,0.92725,2698.2,2697.6,0.00652515]
[1646876667513,0.00340695,2697.9,2697.6,0.00652515]
[1646876668514,0.92733,2697.9,2697.6,0.00652515]
[1646876668943,0.93073696,2697.9,2697.6,0.00652515]
[1646876669347,0.00340696,2697.9,2697.6,0.00652515]
[1646876669748,0.92728,2698.1,2697.6,0.00652515]
[1646876670045,0.00340696,2697.9,2697.6,0.00652515]
[1646876670448,0.93075696,2697.9,2697.6,0.00652515]
[1646876671352,3.5,2697.8,2697.6,0.00652515]
[1646876671754,4.5,2697.8,2697.6,0.00652515]
[1646876671956,2.23075696,2697.9,2697.6,0.00652515]
[1646876672256,0.3,2697.9,2697.6,0.00652515]
[1646876672452,0.00340698,2697.8,2697.6,0.00652515]
[1646876672700,0.00340698,2697.8,2697.6,0.09019986]
[1646876672899,0.00340698,2697.8,2697.6,0.00652515]
[1646876673399,1.22726,2698.1,2697.6,0.00652515]
[1646876674404,0.86848364,2697.9,2697.6,0.00652515]
[1646876674605,0.92736,2697.8,2697.6,0.00652515]
[1646876675306,0.3,2697.9,2697.6,0.00652515]
[1646876675806,1.20565127,2698.1,2697.6,0.00652515]
[1646876676007,0.00322778,2697.9,2697.6,0.00652515]
[1646876676448,0.93064778,2697.9,2697.6,0.00652515]
[1646876676649,1.85496,2697.8,2697.6,0.00652515]
[1646876677649,2.15800778,2697.9,2697.6,0.00652515]
[1646876678249,2.15478,2697.9,2697.6,0.00652515]
[1646876678649,2.15809535,2697.9,2697.6,0.00652515]
[1646876679450,2.15478,2697.9,2697.6,0.00652515]
[1646876680901,2.15809876,2697.9,2697.6,0.00652515]
[1646876681701,2.15478,2697.9,2697.6,0.00652515]
[1646876682100,2.15814111,2697.9,2697.6,0.00652515]
[1646876682901,2.15478,2697.9,2697.6,0.00652515]
[1646876683302,2.15814111,2697.9,2697.6,0.00652515]
[1646876684146,0.938967,2698.2,2697.6,0.00501674]
[1646876684351,3.150955,2698.4,2697.6,0.00501674]
[1646876684352,0.3691,2698.4,2697.6,0.00501674]
[1646876684547,0.00336111,2697.9,2697.6,0.00501674]
[1646876685046,0.00336111,2697.9,2697.8,0.07582001]
[1646876685451,0.5,2698.6,2697.9,0.01008332]
[1646876686052,1.58937085,2698.6,2697.9,0.01008332]
[1646876686858,0.00262773,2698.4,2697.9,0.01008332]
[1646876687899,1.58937085,2698.6,2697.9,0.01008332]
[1646876688097,0.00262773,2698.3,2697.9,0.01008332]
[1646876688498,0.87634953,2698.0,2697.9,0.01008332]
[1646876689100,0.011667,2698.3,2697.9,0.01008332]
[1646876689303,2.35441,2698.6,2697.9,0.01008332]
[1646876689304,0.00340889,2698.1,2697.9,0.01008332]
[1646876690304,1.81425939,2698.6,2697.9,0.08838213]
[1646876690509,0.5,2698.6,2698.0,0.011767]
[1646876690706,0.00340888,2698.1,2698.0,0.011767]
[1646876691355,1.48646667,2699.2,2698.0,0.011767]
[1646876691547,0.93772263,2698.9,2698.0,0.011767]
[1646876691846,0.00340887,2698.2,2698.0,0.09768779]
[1646876692646,0.93772263,2698.9,2698.0,0.09768779]
[1646876692848,0.00339183,2698.2,2698.0,0.09768779]
[1646876693051,0.00339183,2698.2,2697.9,0.01008332]
[1646876693847,1.60682263,2698.9,2697.9,0.01008332]
[1646876694047,1.60682263,2698.9,2698.0,0.011773]
[1646876694246,0.9271836,2698.7,2698.0,0.011773]
[1646876694449,1.23772263,2698.9,2698.0,0.011773]
[1646876694647,1.23772263,2698.9,2698.1,1.53584889]
[1646876694847,1.23772263,2698.9,2698.2,0.08355352]
[1646876695096,1.23772263,2698.9,2698.0,0.011773]
[1646876695300,1.23772263,2698.9,2698.2,0.08646426]
[1646876695500,1.60682263,2698.9,2698.0,0.011773]
[1646876695704,1.23772263,2698.9,2698.2,0.09030318]
[1646876695899,1.23772263,2698.9,2698.0,0.011773]
[1646876696100,1.23772263,2698.9,2698.1,1.53584883]
[1646876696299,1.23772263,2698.9,2698.2,0.08322071]
[1646876696500,0.93036164,2698.7,2698.2,0.08322071]
[1646876696699,1.23036164,2698.7,2698.0,0.011773]
[1646876696901,3.5,2698.6,2697.9,0.01008332]
[1646876697301,4.5,2698.6,2697.9,0.01008332]
[1646876697507,0.92718,2698.4,2697.9,0.01008332]
[1646876697702,1.22546083,2698.2,2697.9,0.01008332]
[1646876697901,1.22546083,2698.2,2698.0,1.9]
[1646876698103,1.22546083,2698.2,2697.6,0.01668374]
[1646876698104,3.7,2698.0,2697.6,0.00501674]
[1646876698305,0.445,2697.9,2697.6,0.00501674]
[1646876698500,0.92758,2697.8,2697.6,0.00501674]
[1646876698700,1.22758,2697.8,2697.6,0.00501674]
[1646876699147,1.21838234,2697.7,2697.6,0.00501674]
[1646876701359,1.23096815,2697.8,2697.6,0.01669174]
[1646876701956,1.23096815,2697.8,2697.6,0.00501674]
[1646876702157,0.3,2697.8,2697.6,0.00501674]
[1646876702356,1.2276,2697.9,2697.6,0.01669074]
[1646876702599,0.00338813,2697.8,2697.6,0.01669074]
[1646876703400,1.0,2697.7,2697.6,0.01669074]
[1646876703604,1.0,2697.7,2697.6,1.5527973]
[1646876704407,1.0,2697.7,2697.6,0.00501674]
[1646876705205,1.3,2697.7,2697.6,0.00501674]
[1646876707363,2.3,2697.7,2697.6,0.00501674]
[1646876707564,3.52564967,2697.7,2697.6,0.00501674]
[1646876707965,4.52564967,2697.7,2697.6,0.00501674]
[1646876709167,6.38061967,2697.7,2697.6,3.48740588]
[1646876709366,6.38061967,2697.7,2697.6,6.96979502]
[1646876709567,7.38061967,2697.7,2697.6,6.96979502]
[1646876710408,4.3,2697.7,2697.6,6.96979502]
[1646876710805,4.3,2697.7,2697.6,6.87536384]
[1646876711007,4.3,2697.7,2697.6,6.9594948]
[1646876711412,4.0,2697.7,2697.6,6.9577537]
[1646876711607,4.0,2697.7,2697.6,8.49384912]
[1646876712207,3.99917137,2697.7,2697.6,8.49384912]
[1646876712807,3.99917137,2697.7,2697.6,6.9457637]
[1646876713013,3.99917137,2697.7,2697.6,6.9574997]
[1646876713409,4.99917137,2697.7,2697.6,6.9574997]
[1646876713860,4.99917137,2697.7,2697.6,6.9457637]
[1646876714251,4.99917137,2697.7,2697.6,3.552789]
[1646876714452,4.99917137,2697.7,2697.6,6.9457637]
[1646876715053,5.29917137,2697.7,2697.6,6.87536384]
[1646876715457,7.29917137,2697.7,2697.6,6.87536384]
[1646876716058,7.29917137,2697.7,2697.6,0.8057541]
[1646876716059,10.79917137,2697.7,2697.6,0.8057541]
[1646876716262,0.90258062,2697.4,2696.9,8.17]
[1646876716458,3.5,2697.3,2696.9,8.17]
[1646876716661,4.20258062,2697.4,2696.9,8.17]
[1646876716858,0.3,2697.3,2696.9,8.17]
[1646876717256,0.5,2697.3,2696.9,8.17]
[1646876717457,0.97567576,2697.2,2696.9,8.17]
[1646876717709,3.5,2697.1,2696.9,8.17]
[1646876718009,3.8,2697.1,2696.9,8.17]
[1646876718212,4.8,2697.1,2696.9,8.17]
[1646876718409,1.3,2697.1,2696.9,8.17]
[1646876718811,0.3,2697.1,2696.9,8.17]
[1646876719013,3.50352086,2697.2,2696.9,8.17]
[1646876719215,3.20352086,2697.2,2696.9,8.17]
[1646876719614,2.20352086,2697.2,2696.9,8.17]
[1646876719815,3.20352086,2697.2,2696.9,8.17]
[1646876720013,2.20352086,2697.2,2696.9,8.17]
[1646876720215,3.20352086,2697.2,2696.9,8.17]
[1646876720416,2.20352086,2697.2,2696.9,8.17]
[1646876720619,3.20352086,2697.2,2696.9,8.17]
[1646876720815,2.1557051,2697.2,2696.9,8.17]
[1646876721018,2.1557051,2697.2,2697.0,0.011798]
[1646876721019,0.92786,2697.2,2697.0,0.011798]
[1646876721455,7.90712964,2697.7,2697.1,0.0827092]
[1646876721456,7.85743084,2697.7,2697.1,0.0827092]
[1646876721659,7.85421137,2697.7,2697.3,0.015144]
[1646876722057,0.90883825,2697.6,2697.3,0.015144]
[1646876722357,0.90883825,2697.6,2697.0,0.011798]
[1646876722755,0.9275,2697.5,2697.0,0.011798]
[1646876723158,8.78490581,2697.7,2697.3,0.012025]
[1646876723159,6.00241581,2697.7,2697.3,0.012025]
[1646876723359,6.00241581,2697.7,2697.5,0.011931]
[1646876723558,6.00241581,2697.7,2697.6,0.011865]
[1646876723957,5.99917137,2697.7,2697.6,0.011865]
[1646876724362,5.99917137,2697.7,2697.3,0.012025]
[1646876724558,5.99917137,2697.7,2696.9,0.011667]
[1646876724757,5.99917137,2697.7,2696.8,0.011667]
[1646876725202,5.99917137,2697.7,2697.0,0.011886]
[1646876725500,1.17980532,2697.4,2697.0,0.011886]
[1646876725701,0.92752,2697.5,2697.0,0.011886]
[1646876725903,0.3,2697.4,2697.0,0.011886]
[1646876726102,0.3,2697.5,2697.1,0.01184]
[1646876726301,7.92661137,2697.7,2697.1,0.01184]
[1646876726302,0.3,2697.6,2697.1,0.01184]
[1646876726907,1.49236505,2697.6,2697.1,0.01184]
[1646876727303,1.49236505,2697.6,2697.1,4e-05]
[1646876727507,0.92781,2697.0,2695.4,2.30497402]
[1646876727805,0.92781,2697.0,2695.5,1.53685563]
[1646876727806,1.02699999,2695.9,2695.5,1.53685563]
[1646876728009,1.02699999,2695.9,2695.6,1.53685563]
[1646876728010,1.08092003,2695.9,2695.6,1.53685563]
[1646876728203,1.02699999,2695.9,2694.9,0.24613043]
[1646876728406,0.04396647,2695.8,2695.0,1.53721566]
[1646876728604,0.04396647,2695.8,2695.1,1.53721566]
[1646876728865,0.92826,2695.4,2695.2,1.53721566]
[1646876729055,1.85652,2695.6,2695.5,0.7114457]
[1646876729254,2.85652,2695.6,2695.5,0.7114457]
[1646876729462,2.85652,2695.6,2694.4,0.68654192]
[1646876729463,2.83643154,2695.4,2694.4,0.68654192]
[1646876729657,0.04964468,2695.2,2694.5,1.53757987]
[1646876729857,0.9286,2694.9,2694.6,1.53757987]
[1646876730055,0.98144801,2694.9,2694.7,1.53757987]
[1646876730257,0.98144801,2694.9,2693.9,1.27254003]
[1646876730456,0.93847063,2694.7,2694.1,1.21301492]
[1646876730658,1.86709063,2694.7,2694.2,1.53767756]
[1646876731057,0.92861,2694.6,2694.2,1.53767756]
[1646876731655,0.92861,2694.6,2694.3,0.00260137]
[1646876732457,0.92861,2694.6,2694.0,1.53767756]
[1646876732898,0.92861,2694.6,2694.3,0.00260137]
[1646876733703,0.92861,2694.6,2694.0,1.53767756]
[1646876734104,0.92861,2694.6,2694.3,0.00260137]
[1646876734903,0.92861,2694.6,2694.0,1.53767756]
[1646876734904,0.97864939,2694.4,2694.0,1.53767756]
[1646876735106,4.42873,2694.3,2694.0,1.53767756]
[1646876735306,4.42873,2694.3,2693.9,0.0148948]
[1646876735513,0.05060806,2694.1,2693.9,0.0148948]
[1646876735710,3.55060806,2694.1,2693.9,0.0148948]
[1646876735909,0.05060806,2694.1,2693.9,0.0148948]
[1646876736107,0.05141157,2694.0,2693.4,1.10438856]
[1646876736376,0.92881,2693.7,2693.5,1.54835768]
[1646876736567,0.92881,2693.7,2693.6,1.5379489]
[1646876736765,4.42881,2693.7,2693.6,1.5379489]
[1646876736965,0.98431292,2693.7,2693.6,1.5379489]
[1646876737166,1.98431292,2693.7,2693.6,1.5379489]
[1646876737369,0.98431292,2693.7,2693.6,1.5379489]
[1646876737766,0.92881,2693.7,2693.6,1.5379489]
[1646876737967,0.92881,2693.7,2693.5,1.5379489]
[1646876738168,0.92881,2693.7,2693.6,1.5379489]
[1646876738568,2.78659,2693.6,2693.1,1.5379489]
[1646876738773,2.78659,2693.6,2693.2,1.53795861]
[1646876738774,0.06700872,2693.4,2693.2,1.53795861]
[1646876738970,2.78659,2693.6,2693.4,0.13401743]
[1646876739174,2.78659,2693.6,2693.5,1.53795861]
[1646876739371,2.78659,2693.6,2693.5,2.76996839]
[1646876739572,0.92886,2693.6,2693.5,2.76996839]
[1646876739774,2.85759,2693.9,2693.5,2.76996839]
[1646876740103,2.85759,2693.9,2693.6,1.53795861]
[1646876740704,2.85759,2693.9,2693.4,0.13401743]
[1646876740705,0.04796887,2693.8,2693.7,1.53795861]
[1646876741103,0.04796887,2693.8,2693.5,1.53795861]
[1646876741304,2.85759,2693.9,2693.6,1.54052358]
[1646876741603,2.85759,2693.9,2693.7,1.53795861]
[1646876741604,1.85759,2693.9,2693.7,1.53795861]
[1646876741804,2.85759,2693.9,2693.8,1.53795861]
[1646876742003,1.85759,2693.9,2693.8,1.53795861]
[1646876742204,1.85759,2693.9,2693.5,1.53795861]
[1646876742205,2.85759,2693.9,2693.5,1.53795861]
[1646876742503,1.85759,2693.9,2693.6,1.53795861]
[1646876742706,2.85759,2693.9,2693.7,1.53795861]
[1646876742904,1.85759,2693.9,2693.8,1.53795861]
[1646876743104,1.85759,2693.9,2693.5,1.53795861]
[1646876743105,0.05163657,2693.8,2693.5,1.53795861]
[1646876743304,1.85772,2693.7,2693.5,1.53795861]
[1646876743604,0.92879,2693.7,2693.4,0.13401743]
[1646876743850,1.85753,2693.7,2693.4,0.13401743]
[1646876744050,1.0563101,2693.6,2693.4,0.13401743]
[1646876744450,3.15753,2693.7,2693.4,0.13401743]
[1646876744651,1.0,2693.7,2693.4,0.13401743]
[1646876744851,2.85733,2694.0,2693.4,0.13401743]
[1646876745050,1.85733,2694.0,2693.4,0.13401743]
[1646876745256,2.85733,2694.0,2693.4,0.13401743]
[1646876745453,1.85733,2694.0,2693.4,0.13401743]
[1646876745656,2.85733,2694.0,2693.4,0.13401743]
[1646876745856,1.85733,2694.0,2693.5,0.94025959]
[1646876746059,1.85733,2694.0,2693.6,0.00256501]
[1646876746060,2.85733,2694.0,2693.6,0.00256501]
[1646876746257,1.85733,2694.0,2693.6,0.00256501]
[1646876746557,2.85733,2694.0,2693.6,0.00256501]
[1646876746755,1.85733,2694.0,2693.6,0.00256501]
[1646876746956,2.85733,2694.0,2693.5,0.94025959]
[1646876747158,1.85733,2694.0,2693.4,0.13401743]
[1646876747356,3.45233,2694.0,2693.7,0.00256492]
[1646876747613,2.15233,2694.0,2693.7,0.00256492]
[1646876747808,3.15233,2694.0,2693.7,0.00256492]
[1646876748006,2.15233,2694.0,2693.7,0.00256492]
[1646876748306,2.15233,2694.0,2693.4,0.13401743]
[1646876748307,4.02484483,2694.0,2693.4,0.13401743]
[1646876748510,0.05374817,2693.8,2693.7,0.00198777]
[1646876748710,0.013371,2693.5,2693.4,0.13401743]
[1646876749107,3.7,2693.5,2692.9,0.0690666]
[1646876749306,1.03753264,2693.3,2692.9,0.0690666]
[1646876749507,3.82501144,2693.3,2692.9,0.0690666]
[1646876749708,0.5,2693.0,2692.9,0.0690666]
[1646876749914,0.5,2693.0,2692.3,0.08618778]
[1646876749915,1.85832,2692.6,2692.3,0.08618778]
[1646876750108,1.85832,2692.6,2692.3,0.014414]
[1646876750109,0.3,2692.6,2692.3,0.014414]
[1646876750411,1.22918,2692.7,2692.3,1.08366169]
[1646876750608,1.22918,2692.7,2692.3,0.014414]
[1646876750609,1.85841,2692.5,2692.3,0.014414]
[1646876750809,3.71677,2692.5,2692.3,0.014414]
[1646876751009,4.01677,2692.5,2692.3,0.014414]
[1646876751212,0.9292,2692.6,2692.3,0.014414]
[1646876751453,0.92918,2692.7,2692.3,0.014414]
[1646876751858,1.22918,2692.7,2692.3,0.014414]
[1646876752057,4.72918,2692.7,2692.3,0.014414]
[1646876752257,1.85846,2692.6,2692.3,0.014414]
[1646876752457,3.55173522,2692.5,2692.3,0.028828]
[1646876752660,0.0528557,2692.4,2692.3,0.028828]
[1646876752862,3.8,2692.3,2692.0,0.01701992]
[1646876753062,3.8,2692.3,2691.0,8.54661867]
[1646876753063,0.92971,2692.1,2691.0,8.54661867]
[1646876753258,0.92971,2692.1,2691.7,0.06128808]
[1646876753259,2.78911,2691.9,2691.7,0.06128808]
[1646876753462,2.78911,2691.9,2691.4,0.05246244]
[1646876753463,0.04153724,2691.6,2691.4,0.05246244]
[1646876753660,0.04153724,2691.6,2691.4,0.05235444]
[1646876753661,0.49820692,2691.5,2691.4,0.05235444]
[1646876753859,0.49820692,2691.5,2691.1,0.0428757]
[1646876753860,3.8,2691.4,2690.9,0.10068094]
[1646876754064,3.8,2691.4,2690.5,0.06164974]
[1646876754065,3.1,2691.1,2690.5,0.06164974]
[1646876754261,1.15216699,2690.5,2690.4,0.0481848]
[1646876754464,7.18969,2691.1,2689.8,1.0810332]
[1646876754465,0.04521058,2690.4,2689.8,1.0810332]
[1646876754663,0.05339584,2690.7,2689.8,1.0810332]
[1646876754867,0.05339584,2690.7,2690.5,0.04693352]
[1646876755110,0.3,2690.9,2690.5,0.04693352]
[1646876755318,0.92965,2690.9,2690.6,0.8724337]
[1646876755514,3.08894,2691.1,2690.5,0.04693352]
[1646876755714,3.08894,2691.1,2690.6,0.03925184]
[1646876755715,3.5,2691.0,2690.6,0.03925184]
[1646876755915,0.445,2691.0,2690.6,0.03925184]
[1646876756117,0.04744107,2690.9,2690.6,0.03925184]
[1646876756313,1.91252076,2690.8,2690.6,0.03925184]
[1646876756513,1.80690924,2690.8,2690.6,0.03925184]
[1646876756714,2.22488,2691.0,2690.6,0.03925184]
[1646876756715,0.92988,2691.0,2690.6,0.03925184]
[1646876756912,0.005834,2691.0,2690.6,0.03925184]
[1646876757118,0.2602,2691.6,2690.7,1.10029304]
[1646876757412,0.2602,2691.6,2691.0,1.106]
[1646876757612,0.2602,2691.6,2691.0,0.906]
[1646876757813,0.2602,2691.6,2691.5,1.5764202]
[1646876758513,0.2602,2691.6,2691.5,1.6130494]
[1646876758859,0.2602,2691.6,2691.5,0.9426292]
[1646876760164,0.2602,2691.6,2691.5,2.92e-05]
[1646876760365,0.2602,2691.6,2691.0,0.04290247]
[1646876760366,3.5,2691.5,2691.0,0.02903556]
[1646876760562,0.48846941,2691.4,2691.0,0.02903556]
[1646876760765,1.865834,2691.2,2691.0,3.556e-05]
[1646876760967,1.375,2691.1,2691.0,0.04622305]
[1646876761169,0.93,2691.1,2691.0,0.04622305]